bitfinex/quotes_BTCUSD_20250423
["timestamp","ask_amount","ask_price","bid_price","bid_amount"]
[1745395793330,0.0532,94004.0,94003.0,0.55275916]
[1745395793565,0.0532,94004.0,94003.0,0.55940174]
[1745395793738,0.0476,94005.0,94003.0,0.55940174]
[1745395793952,0.0476,94005.0,94004.0,0.2127569]
[1745395794287,0.0476,94005.0,94004.0,0.21939948]
[1745395795972,0.0516,94005.0,94004.0,0.21939948]
[1745395797665,0.004,94005.0,94004.0,0.21939948]
[1745395800949,0.004,94005.0,94004.0,0.00664258]
[1745395801336,0.004,94005.0,94004.0,0.21939948]
[1745395805143,0.004,94005.0,94004.0,0.56152687]
[1745395805305,0.004,94005.0,94004.0,0.55939948]
[1745395805711,0.00317,94006.0,94004.0,0.55939948]
[1745395805922,0.00317,94006.0,94005.0,0.34664258]
[1745395807406,0.00517,94006.0,94005.0,0.34664258]
[1745395810293,0.00517,94006.0,94005.0,0.55939722]
[1745395812508,0.00546,94006.0,94005.0,0.55939722]
[1745395814228,0.05366,94006.0,94005.0,0.00664258]
[1745395814434,0.31301237,94006.0,94005.0,0.00664258]
[1745395814644,0.10026,94006.0,94005.0,0.00664258]
[1745395814851,0.10026,94006.0,94005.0,0.34664258]
[1745395815966,0.10026,94006.0,94005.0,0.00664258]
[1745395816223,0.00013957,94009.0,94008.0,0.34]
[1745395816939,0.00013957,94009.0,94008.0,0.34664258]
[1745395817164,0.00013957,94009.0,94008.0,0.00664258]
[1745395818109,0.00313957,94009.0,94008.0,0.00664258]
[1745395819176,0.09713957,94009.0,94008.0,0.00664258]
[1745395820055,0.19965957,94009.0,94008.0,0.00664258]
[1745395823085,0.19993957,94009.0,94008.0,0.00664258]
[1745395825596,0.30824262,94009.0,94008.0,0.00664258]
[1745395831790,0.52869927,94009.0,94008.0,0.00664258]
[1745395833407,0.52569927,94009.0,94008.0,0.00664258]
[1745395833602,0.52969927,94009.0,94008.0,0.00764258]
[1745395834005,0.54424012,94009.0,94008.0,0.00764258]
[1745395834181,0.54824012,94009.0,94008.0,0.00764258]
[1745395835034,0.0461,93984.0,93980.0,0.20850598]
[1745395835235,0.00701598,93983.0,93980.0,0.01317286]
[1745395835466,0.00601598,93983.0,93981.0,0.00664409]
[1745395836063,0.00601598,93983.0,93982.0,0.00664409]
[1745395837455,0.00601598,93983.0,93982.0,0.00764409]
[1745395838402,0.00601598,93983.0,93982.0,0.01064409]
[1745395843696,0.10853598,93983.0,93982.0,0.01064409]
[1745395845097,0.42964347,93983.0,93982.0,0.01064409]
[1745395845292,0.21683903,93983.0,93982.0,0.01064409]
[1745395847227,0.10853598,93983.0,93982.0,0.01064409]
[1745395848070,0.10252,93983.0,93982.0,0.01064409]
[1745395848282,0.10252,93983.0,93982.0,0.56345079]
[1745395848481,0.10252,93983.0,93982.0,0.35064409]
[1745395848683,0.21276441,94001.0,93982.0,0.35064409]
[1745395848684,0.01063784,94004.0,93988.0,0.01063965]
[1745395848853,0.10092,93994.0,93988.0,0.34]
[1745395849054,0.10092,93994.0,93989.0,0.00664409]
[1745395849474,0.10092,93994.0,93991.0,0.01063931]
[1745395849727,0.10092,93994.0,93992.0,0.00664409]
[1745395850068,0.10092,93994.0,93993.0,0.00664409]
[1745395850267,0.10192,93994.0,93993.0,0.00664409]
[1745395850700,0.10392,93994.0,93993.0,0.00664409]
[1745395850898,0.10292,93994.0,93993.0,0.00664409]
[1745395851076,0.10092,93994.0,93993.0,0.00664409]
[1745395851497,0.10292,93994.0,93993.0,0.00664409]
[1745395852032,0.10092,93994.0,93993.0,0.00664409]
[1745395852229,0.10092,93994.0,93993.0,0.55942589]
[1745395852378,0.10292,93994.0,93993.0,0.34664409]
[1745395852598,0.10092,93994.0,93993.0,0.34664409]
[1745395852963,0.10392,93994.0,93993.0,0.34664409]
[1745395855701,0.003,93994.0,93993.0,0.34664409]
[1745395856594,0.001,93994.0,93993.0,0.34664409]
[1745395862207,0.001,93994.0,93993.0,0.36664409]
[1745395862940,0.001,93994.0,93993.0,0.57942589]
[1745395863544,0.001,93994.0,93993.0,0.36664409]
[1745395866616,0.001,93994.0,93993.0,0.02]
[1745395867357,0.00794942,93994.0,93993.0,0.02]
[1745395867566,0.001,93994.0,93993.0,0.02]
[1745395867791,0.00793718,93994.0,93993.0,0.02]
[1745395868367,0.001,93994.0,93993.0,0.02]
[1745395868771,0.16504023,93994.0,93993.0,0.02]
[1745395869002,0.15810305,93994.0,93993.0,0.02]
[1745395869273,0.37781976,93994.0,93993.0,0.02]
[1745395869447,0.16504023,93994.0,93993.0,0.02]
[1745395870061,0.16604023,93994.0,93993.0,0.02]
[1745395870231,0.16504023,93994.0,93993.0,0.02]
[1745395870625,0.37981976,93994.0,93993.0,0.02]
[1745395871053,0.42931976,93994.0,93993.0,0.02]
[1745395871254,0.43131976,93994.0,93993.0,0.02]
[1745395876074,0.43131976,93994.0,93993.0,0.02]
[1745395878720,0.43131976,93994.0,93993.0,0.0266438]
[1745395884011,0.53023976,93994.0,93993.0,0.0266438]
[1745395892267,0.53023976,93994.0,93993.0,0.02664423]
[1745395893547,0.53023976,93994.0,93993.0,0.02]
[1745395893934,0.53023976,93994.0,93993.0,0.02664425]
[1745395896160,0.21280897,93981.0,93980.0,0.13323822]
[1745395896393,0.01064078,93978.0,93972.0,0.34]
[1745395896584,0.22344941,93981.0,93972.0,0.34]
[1745395896585,0.223452,93980.0,93972.0,0.34]
[1745395896720,0.00679742,93977.0,93972.0,0.34]
[1745395896920,0.223452,93980.0,93972.0,0.34]
[1745395897129,0.01744078,93979.0,93972.0,0.34]
[1745395897364,0.22925447,93979.0,93972.0,0.34]
[1745395897567,0.00590895,93979.0,93972.0,0.34]
[1745395897963,0.22936329,93979.0,93972.0,0.35546481]
[1745395898189,0.00290895,93979.0,93972.0,0.35546481]
[1745395898395,0.21922174,93979.0,93972.0,0.35546481]
[1745395898611,0.22986241,93979.0,93972.0,0.35546481]
[1745395899031,0.22986241,93979.0,93972.0,0.35846481]
[1745395899170,0.22346409,93975.0,93972.0,0.01846481]
[1745395899381,0.01064101,93976.0,93972.0,0.01846481]
[1745395899584,0.00629339,93974.0,93972.0,0.02046481]
[1745395899805,0.01064101,93976.0,93972.0,0.01746481]
[1745395900017,0.00629204,93973.0,93972.0,0.01546481]
[1745395900245,0.2234567,93978.0,93972.0,0.003]
[1745395900589,0.01064101,93976.0,93972.0,0.01834522]
[1745395900799,0.01064101,93976.0,93972.0,0.01934522]
[1745395900999,0.00629473,93975.0,93972.0,0.01934522]
[1745395901396,0.00629473,93975.0,93972.0,0.01834522]
[1745395901599,0.10956078,93978.0,93972.0,0.01634522]
[1745395901795,0.00629339,93974.0,93972.0,0.01634522]
[1745395902023,0.0106409,93977.0,93972.0,0.01634522]
[1745395902226,0.00629204,93973.0,93972.0,0.01634522]
[1745395902360,0.01064112,93975.0,93972.0,0.01734522]
[1745395902699,0.00629339,93974.0,93972.0,0.01734522]
[1745395902906,0.01064101,93976.0,93972.0,0.01634522]
[1745395903108,0.00629473,93975.0,93972.0,0.01634522]
[1745395903280,0.01693585,93975.0,93972.0,0.01534522]
[1745395903496,0.22976045,93975.0,93971.0,0.002]
[1745395903870,0.00629473,93975.0,93971.0,0.002]
[1745395904281,0.21282935,93972.0,93971.0,0.002]
[1745395904482,0.3211324,93972.0,93971.0,0.002]
[1745395904684,0.32738498,93972.0,93971.0,0.002]
[1745395904917,0.32738498,93972.0,93971.0,0.01856421]
[1745395905088,0.37688498,93972.0,93971.0,0.01856421]
[1745395905282,0.37688498,93972.0,93971.0,0.004]
[1745395905511,0.37688498,93972.0,93971.0,0.003]
[1745395905686,0.38088498,93972.0,93971.0,0.003]
[1745395905883,0.38088498,93972.0,93971.0,0.0185114]
[1745395907149,0.38088498,93972.0,93971.0,0.0175114]
[1745395907563,0.38388498,93972.0,93971.0,0.0185114]
[1745395908107,0.38388498,93972.0,93971.0,0.02515644]
[1745395909995,0.38388498,93972.0,93971.0,0.02473627]
[1745395910559,0.21283828,93969.0,93963.0,0.19937332]
[1745395910738,0.01064203,93967.0,93962.0,0.12908463]
[1745395911178,0.01064226,93965.0,93962.0,0.12908463]
[1745395911333,0.00621127,93966.0,93962.0,0.0008506]
[1745395911539,0.01064203,93967.0,93962.0,0.0008506]
[1745395911540,0.21284973,93963.0,93962.0,0.01674581]
[1745395911784,0.00620724,93963.0,93962.0,0.01674581]
[1745395912527,0.21284748,93964.0,93962.0,0.01674581]
[1745395912733,0.00720724,93963.0,93962.0,0.01674581]
[1745395914094,0.00620724,93963.0,93962.0,0.01674581]
[1745395914463,0.00620724,93963.0,93962.0,0.01774581]
[1745395914659,0.00620724,93963.0,93962.0,0.01674581]
[1745395914865,0.00720724,93963.0,93962.0,0.01674581]
[1745395915101,0.00920724,93963.0,93962.0,0.01774581]
[1745395915332,0.22205697,93963.0,93962.0,0.01774581]
[1745395915977,0.22349464,93962.0,93957.0,0.12823403]
[1745395916184,0.22349464,93962.0,93952.0,0.12823403]
[1745395916466,0.00617371,93961.0,93952.0,0.12823403]
[1745395916670,0.003,93963.0,93952.0,0.12823403]
[1745395916894,0.00617505,93962.0,93952.0,0.12823403]
[1745395917103,0.00617505,93962.0,93953.0,0.12908463]
[1745395917266,0.00617505,93962.0,93955.0,0.01606711]
[1745395917476,0.10830305,93964.0,93955.0,0.01606711]
[1745395917683,0.0061764,93963.0,93955.0,0.01606711]
[1745395918245,0.0061764,93963.0,93960.0,0.01064282]
[1745395918439,0.0061764,93963.0,93962.0,0.212852]
[1745395918659,0.00010884,93979.0,93963.0,0.01064248]
[1745395918872,0.01074951,93979.0,93967.0,0.12823403]
[1745395919168,0.00010884,93979.0,93967.0,0.12823403]
[1745395919310,0.00619087,93976.0,93967.0,0.12823403]
[1745395919509,0.00619087,93976.0,93968.0,0.01064192]
[1745395919718,0.00010884,93979.0,93967.0,0.01064203]
[1745395919940,0.00010884,93979.0,93968.0,0.01064192]
[1745395920593,0.00010884,93979.0,93967.0,0.01064203]
[1745395920790,0.00010884,93979.0,93966.0,0.12823403]
[1745395920962,0.00010884,93979.0,93966.0,0.13887617]
[1745395921167,0.00621164,93976.0,93968.0,0.21383664]
[1745395921492,0.0938541,93977.0,93968.0,0.001]
[1745395921783,0.0908541,93977.0,93968.0,0.001]
[1745395921986,0.0878541,93977.0,93967.0,0.34]
[1745395922127,0.00545307,93976.0,93967.0,0.34]
[1745395922329,0.08636708,93977.0,93967.0,0.35064203]
[1745395922575,0.00545298,93976.0,93968.0,0.00664422]
[1745395922774,0.08436708,93977.0,93969.0,0.00664422]
[1745395922986,0.00545298,93976.0,93969.0,0.00664422]
[1745395923417,0.08636708,93977.0,93970.0,0.00664422]
[1745395923589,0.08436708,93977.0,93970.0,0.00664422]
[1745395923804,0.00541602,93976.0,93970.0,0.00664422]
[1745395923940,0.08736708,93977.0,93971.0,0.00664422]
[1745395924343,0.003,93976.0,93971.0,0.00664422]
[1745395924587,0.003,93976.0,93972.0,0.00664422]
[1745395924798,0.08236708,93977.0,93972.0,0.00664422]
[1745395925001,0.08236708,93977.0,93968.0,0.34]
[1745395925002,0.002,93976.0,93973.0,0.00664422]
[1745395925199,0.00741602,93976.0,93973.0,0.00664422]
[1745395925404,0.00541602,93976.0,93973.0,0.00664422]
[1745395925607,0.00541602,93976.0,93974.0,0.00664422]
[1745395925904,0.00841602,93976.0,93974.0,0.00664422]
[1745395926101,0.00541602,93976.0,93975.0,0.00664422]
[1745395926620,0.00941602,93976.0,93975.0,0.00664422]
[1745395927323,0.01341602,93976.0,93975.0,0.00664422]
[1745395927678,0.00941602,93976.0,93975.0,0.00664422]
[1745395927940,0.01341602,93976.0,93975.0,0.00764422]
[1745395928250,0.01741602,93976.0,93975.0,0.00764422]
[1745395948100,0.012,93976.0,93975.0,0.00764422]
[1745395952309,0.01739334,93976.0,93975.0,0.00764422]
[1745395952501,0.012,93976.0,93975.0,0.00764422]
[1745395952813,0.17089116,93976.0,93975.0,0.00764422]
[1745395952988,0.26909116,93976.0,93975.0,0.00764422]
[1745395957948,0.22389116,93976.0,93975.0,0.00764422]
[1745395958276,0.01738811,93976.0,93975.0,0.43072922]
[1745395958622,0.012,93976.0,93975.0,0.43072922]
[1745395959181,0.008,93976.0,93975.0,0.43072922]
[1745395959391,0.01,93976.0,93975.0,0.43072922]
[1745395960279,0.002,93976.0,93975.0,0.42972922]
[1745395960524,0.005,93976.0,93975.0,0.43072922]
[1745395962103,0.005,93976.0,93975.0,0.64355177]
[1745395962311,0.005,93976.0,93975.0,0.69335177]
[1745395963255,0.00010884,93979.0,93978.0,0.55281576]
[1745395963409,0.00010884,93979.0,93978.0,0.55945998]
[1745395964849,0.00110884,93979.0,93978.0,0.55945998]
[1745395969515,0.00010884,93979.0,93978.0,0.56045998]
[1745395969971,0.00010884,93979.0,93978.0,0.56145998]
[1745395985706,0.0982,93997.0,93978.0,0.56145998]
[1745395985707,0.0982,93997.0,93994.0,0.01063897]
[1745395985906,0.0982,93997.0,93991.0,0.01063931]
[1745395986076,0.00550797,93996.0,93992.0,0.01728342]
[1745395986281,0.0982,93997.0,93992.0,0.34664422]
[1745395986478,0.0982,93997.0,93993.0,0.00664422]
[1745395987135,0.1052,93997.0,93994.0,0.00664422]
[1745395987455,0.00488434,93996.0,93994.0,0.00664422]
[1745395987605,0.1012,93997.0,93995.0,0.00664422]
[1745395987787,0.1042,93997.0,93995.0,0.00664422]
[1745395988145,0.10426928,93997.0,93995.0,0.00664422]
[1745395988342,0.10126928,93997.0,93996.0,0.00664422]
[1745395988545,0.09826928,93997.0,93996.0,0.00664422]
[1745395989125,6.928e-05,93997.0,93996.0,0.55941923]
[1745395989715,0.00406928,93997.0,93996.0,0.55941923]
[1745395989914,0.00368939,93997.0,93996.0,0.55941923]
[1745395990490,0.00668939,93997.0,93996.0,0.55941923]
[1745395990726,0.004,93997.0,93996.0,0.55941923]
[1745395990912,0.09816,94013.0,94012.0,0.34]
[1745395991068,0.0004254,94015.0,94013.0,0.34]
[1745395991278,0.00049467,94015.0,94013.0,0.34]
[1745395991485,0.00049467,94015.0,94014.0,0.00664422]
[1745395992289,0.00349467,94015.0,94014.0,0.00664422]
[1745395992883,0.0470253,94017.0,94016.0,0.55272974]
[1745395992884,0.0004253,94017.0,94016.0,0.55272974]
[1745395993087,0.002,94029.0,94026.0,0.01063535]
[1745395993288,0.0020465,94029.0,94026.0,0.01063535]
[1745395993489,0.0020465,94029.0,94027.0,0.21270465]
[1745395993691,0.0020465,94029.0,94027.0,0.21934887]
[1745395994147,0.0020465,94029.0,94028.0,0.00664422]
[1745395994524,0.0040465,94029.0,94028.0,0.00664422]
[1745395994730,0.0020465,94029.0,94028.0,0.00664422]
[1745395995324,0.0020465,94029.0,94028.0,0.00964422]
[1745395996295,0.0030465,94029.0,94028.0,0.00964422]
[1745395996503,0.0020465,94029.0,94028.0,0.00964422]
[1745395996713,0.0020465,94029.0,94028.0,0.01177103]
[1745395996926,0.0030465,94029.0,94028.0,0.01177103]
[1745395997372,0.00033118,94035.0,94034.0,0.55268902]
[1745395997807,0.00033118,94035.0,94034.0,0.55933324]
[1745395998597,0.00033118,94035.0,94034.0,0.56133324]
[1745395999337,0.00033118,94035.0,94034.0,0.34864422]
[1745395999552,0.00233118,94035.0,94034.0,0.56133324]
[1745395999901,0.0004254,94053.0,94034.0,0.56133324]
[1745395999902,0.0001254,94053.0,94044.0,0.01063332]
[1745396000133,0.06165439,94100.0,94068.0,0.567153]
[1745396000134,0.0471,94096.0,94068.0,0.567153]
[1745396000457,0.0471,94096.0,94080.0,0.34]
[1745396000856,0.00246534,94089.0,94077.0,0.01062959]
[1745396001072,0.00246534,94089.0,94083.0,0.34]
[1745396001278,0.00246534,94089.0,94087.0,0.2125691]
[1745396001645,0.00246534,94089.0,94088.0,0.06621939]
[1745396001861,0.00246534,94089.0,94088.0,0.07286361]
[1745396003450,0.09558534,94092.0,94088.0,0.07286361]
[1745396003732,0.09572485,94092.0,94088.0,0.07486361]
[1745396003885,0.09572485,94092.0,94089.0,0.00664422]
[1745396004085,0.09572485,94092.0,94089.0,0.04039836]
[1745396004311,0.09572485,94092.0,94090.0,0.03375414]
[1745396004847,0.09572485,94092.0,94091.0,0.00664422]
[1745396005910,0.09572485,94092.0,94091.0,0.04039836]
[1745396006394,0.09672485,94092.0,94091.0,0.07454695]
[1745396006950,0.09672485,94092.0,94091.0,0.38079281]
[1745396007180,0.00113951,94092.0,94091.0,0.41554695]
[1745396007842,0.00113951,94092.0,94091.0,0.52385]
[1745396008423,0.09808,94122.0,94114.0,0.19497291]
[1745396008627,0.09808,94121.0,94115.0,0.55250597]
[1745396008830,0.09808,94121.0,94116.0,0.2125029]
[1745396009083,0.09808,94121.0,94119.0,0.21249579]
[1745396009379,0.09808,94121.0,94120.0,0.37414859]
[1745396009598,0.09808,94121.0,94120.0,0.41454695]
[1745396009912,0.09808,94121.0,94120.0,0.34664422]
[1745396010117,0.10208,94121.0,94120.0,0.34664422]
[1745396010316,0.09808,94121.0,94120.0,0.00664422]
[1745396010574,0.10503439,94121.0,94120.0,0.07019591]
[1745396010885,0.09908,94121.0,94120.0,0.07019591]
[1745396011186,0.09808,94121.0,94120.0,0.07019591]
[1745396011319,0.09808,94121.0,94120.0,0.07119591]
[1745396011527,0.00013941,94124.0,94121.0,0.01062462]
[1745396011745,0.00013941,94124.0,94121.0,0.03196056]
[1745396011950,0.00013941,94124.0,94122.0,0.00664422]
[1745396012500,0.00013941,94124.0,94123.0,0.00664422]
[1745396012827,0.00113941,94124.0,94123.0,0.00664422]
[1745396013036,0.00013941,94124.0,94123.0,0.00664422]
[1745396013250,0.00113941,94124.0,94123.0,0.41342925]
[1745396013494,0.00013941,94124.0,94123.0,0.41342925]
[1745396014060,0.00113941,94124.0,94123.0,0.9362323]
[1745396014210,0.00013941,94124.0,94123.0,0.9362323]
[1745396014999,0.00013941,94124.0,94123.0,0.9382323]
[1745396015170,0.00013941,94124.0,94123.0,0.79446301]
[1745396015980,0.00012723,94130.0,94129.0,0.22701522]
[1745396016225,0.00012723,94130.0,94129.0,0.40045364]
[1745396016356,0.00292757,94159.0,94156.0,0.22303334]
[1745396016561,0.00306695,94159.0,94158.0,0.21240892]
[1745396016937,0.00306695,94159.0,94158.0,0.27707853]
[1745396017411,0.00306695,94159.0,94158.0,1.17860909]
[1745396017603,0.13023692,94164.0,94163.0,0.2269385]
[1745396017805,0.13023692,94164.0,94163.0,0.6607007]
[1745396018011,0.13023692,94164.0,94163.0,0.55239765]
[1745396018185,0.33880807,94164.0,94158.0,0.4336982]
[1745396018384,0.12641198,94164.0,94158.0,0.0201982]
[1745396018639,0.1261478,94164.0,94158.0,0.0201982]
[1745396019226,0.1261478,94164.0,94158.0,0.03081864]
[1745396019535,0.1261478,94164.0,94163.0,0.34]
[1745396019694,0.1261478,94164.0,94163.0,0.349]
[1745396020106,0.1261478,94164.0,94163.0,0.44830305]
[1745396020774,0.12556585,94164.0,94163.0,0.44830305]
[1745396021015,0.12656585,94164.0,94163.0,0.86180305]
[1745396021289,0.12656585,94164.0,94163.0,0.7585]
[1745396021435,0.22298379,94178.0,94163.0,0.7585]
[1745396021436,0.01061593,94198.0,94164.0,0.06274085]
[1745396021642,0.22294062,94196.0,94178.0,0.34]
[1745396021985,0.21235705,94181.0,94180.0,0.34]
[1745396022335,0.21831397,94181.0,94180.0,0.34]
[1745396022736,0.00595692,94181.0,94180.0,0.34]
[1745396023315,0.21236555,94178.0,94171.0,0.34]
[1745396023494,0.21236555,94178.0,94173.0,0.34]
[1745396023702,0.00335124,94177.0,94173.0,0.34]
[1745396023905,0.21235931,94180.0,94173.0,0.34]
[1745396024107,0.00515165,94176.0,94173.0,0.34]
[1745396024331,0.21235189,94184.0,94173.0,0.34]
[1745396024544,0.00514933,94175.0,94171.0,0.34]
[1745396024715,0.01061706,94188.0,94158.0,0.0171982]
[1745396024716,0.21240199,94162.0,94160.0,0.19497291]
[1745396025017,0.0487,94187.0,94150.0,0.19497291]
[1745396025018,0.01062101,94153.0,94150.0,0.19497291]
[1745396025170,0.31040667,94159.0,94158.0,0.01750505]
[1745396025376,0.20741719,94155.0,94143.0,0.19497291]
[1745396025562,0.00511437,94154.0,94144.0,0.10830305]
[1745396025755,0.00461303,94154.0,94151.0,0.09]
[1745396026075,0.01062044,94158.0,94151.0,0.09]
[1745396026282,0.21703359,94153.0,94151.0,0.09]
[1745396026504,0.01062055,94157.0,94151.0,0.09]
[1745396026704,0.00461169,94152.0,94151.0,0.09]
[1745396026905,0.22307662,94158.0,94151.0,0.09]
[1745396027234,4.643e-05,94158.0,94152.0,0.34]
[1745396027373,4.643e-05,94158.0,94151.0,0.09]
[1745396027576,0.00461839,94157.0,94151.0,0.096]
[1745396027776,4.643e-05,94158.0,94151.0,0.096]
[1745396027978,0.01523894,94157.0,94152.0,0.00663191]
[1745396028183,0.01062078,94155.0,94152.0,0.00663191]
[1745396028404,0.01062078,94155.0,94151.0,0.096]
[1745396028405,0.21703415,94154.0,94153.0,0.00663191]
[1745396028924,0.3725372,94154.0,94153.0,0.00663191]
[1745396029954,0.11291742,94154.0,94153.0,0.00663191]
[1745396030114,0.10397437,94154.0,94153.0,0.00663191]
[1745396030322,0.25947742,94154.0,94153.0,0.00663191]
[1745396030574,0.26447742,94154.0,94153.0,0.00663191]
[1745396030948,0.25947742,94154.0,94153.0,0.00663191]
[1745396032333,0.26147742,94154.0,94153.0,0.00663191]
[1745396032529,0.05381437,94154.0,94153.0,0.00663191]
[1745396032737,0.05181437,94154.0,94153.0,0.00663191]
[1745396032932,0.14956,94154.0,94153.0,0.00663191]
[1745396033254,0.15056,94154.0,94153.0,0.00663191]
[1745396033446,0.1508924,94154.0,94153.0,0.00663191]
[1745396033808,0.1538924,94154.0,94153.0,0.00663191]
[1745396034016,0.1508924,94154.0,94153.0,0.00663191]
[1745396034218,0.1538924,94154.0,94153.0,0.00663191]
[1745396034426,0.1558924,94154.0,94153.0,0.00663191]
[1745396034561,0.0565324,94154.0,94153.0,0.00663191]
[1745396034761,0.1558924,94154.0,94153.0,0.00663191]
[1745396036079,0.4766134,94154.0,94153.0,0.00663191]
[1745396037218,0.4746134,94154.0,94153.0,0.00663191]
[1745396037481,0.4756134,94154.0,94153.0,0.00663191]
[1745396037907,0.4806134,94154.0,94153.0,0.00663191]
[1745396038336,0.4807005,94154.0,94153.0,0.00663191]
[1745396038777,0.4767005,94154.0,94153.0,0.00663191]
[1745396039190,0.4827005,94154.0,94153.0,0.00663191]
[1745396039325,0.4777005,94154.0,94153.0,0.00663191]
[1745396039737,0.4847005,94154.0,94153.0,0.00663191]
[1745396042020,0.1167795,94154.0,94153.0,0.00663191]
[1745396042524,0.0174195,94154.0,94153.0,0.00663191]
[1745396042701,0.1168195,94154.0,94153.0,0.00663191]
[1745396043111,0.1168195,94154.0,94153.0,0.21905211]
[1745396043271,0.1064871,94154.0,94153.0,0.21905211]
[1745396043483,8.71e-05,94154.0,94153.0,0.6450676]
[1745396043686,0.002,94189.0,94181.0,0.21235705]
[1745396043687,0.09840002,94182.0,94181.0,0.21235705]
[1745396043906,0.09840002,94182.0,94181.0,0.55898896]
[1745396044106,0.00246448,94189.0,94188.0,0.21234127]
[1745396044311,0.10186448,94189.0,94188.0,0.21234127]
[1745396044559,0.10186448,94189.0,94188.0,0.21897318]
[1745396044853,0.00246448,94189.0,94188.0,0.21897318]
[1745396045716,0.00246448,94189.0,94188.0,0.55897318]
[1745396046125,0.00446448,94189.0,94188.0,0.55897318]
[1745396046556,0.04781978,94200.0,94195.0,0.55232549]
[1745396046775,0.04781978,94200.0,94199.0,0.55231647]
[1745396046979,0.002,94209.0,94208.0,0.55229619]
[1745396047387,0.00213931,94209.0,94208.0,0.66723115]
[1745396047522,0.00213869,94229.0,94215.0,0.55228042]
[1745396047891,1e-08,94219.0,94218.0,0.55227366]
[1745396048106,0.05,94251.0,94218.0,0.55227366]
[1745396048107,0.05,94251.0,94248.0,0.21220609]
[1745396048301,0.11072765,94249.0,94248.0,0.00046448]
[1745396048795,0.0024246,94249.0,94248.0,0.00709639]
[1745396049432,0.0024246,94249.0,94248.0,0.00921838]
[1745396049624,0.0024246,94249.0,94248.0,0.00709639]
[1745396049943,0.00596374,94249.0,94248.0,0.00709639]
[1745396050117,0.21816758,94249.0,94248.0,0.00709639]
[1745396050320,0.00796374,94249.0,94248.0,0.00709639]
[1745396050459,0.00596374,94249.0,94248.0,0.00709639]
[1745396050859,0.00996374,94249.0,94248.0,0.00709639]
[1745396051341,0.00996374,94249.0,94221.0,0.34]
[1745396051342,0.21226465,94222.0,94221.0,0.34]
[1745396051545,0.21224212,94232.0,94221.0,0.10830305]
[1745396051707,0.00350302,94222.0,94221.0,0.10830305]
[1745396052058,0.21225074,94229.0,94222.0,0.34]
[1745396052205,0.00351105,94228.0,94222.0,0.34]
[1745396052414,0.01061131,94239.0,94222.0,0.34]
[1745396052669,0.21224546,94231.0,94222.0,0.34]
[1745396052792,0.00351372,94230.0,94222.0,0.34]
[1745396053257,0.21576247,94230.0,94222.0,0.34]
[1745396053487,0.00351372,94230.0,94222.0,0.341]
[1745396053694,0.00351372,94230.0,94222.0,0.34]
[1745396053957,0.00351372,94230.0,94224.0,0.34]
[1745396054158,0.00451372,94230.0,94226.0,0.34]
[1745396054357,0.001,94230.0,94228.0,0.34]
[1745396054560,0.001,94230.0,94229.0,0.66267404]
[1745396054787,0.001,94230.0,94229.0,0.66055193]
[1745396055385,0.001,94230.0,94229.0,0.44830305]
[1745396055622,0.01261007,94250.0,94236.0,0.34]
[1745396055916,0.22283245,94242.0,94224.0,0.002]
[1745396056127,0.00367326,94240.0,94231.0,0.34]
[1745396056283,0.22283011,94243.0,94231.0,0.34]
[1745396056511,0.00367326,94240.0,94231.0,0.34]
[1745396056684,0.01403479,94249.0,94232.0,0.0106121]
[1745396056886,0.22624081,94249.0,94232.0,0.22285236]
[1745396057087,0.22624081,94249.0,94234.0,0.01061188]
[1745396057318,0.0034246,94249.0,94236.0,0.01061165]
[1745396057505,0.0034246,94249.0,94235.0,0.01061176]
[1745396057708,0.01403479,94249.0,94233.0,0.01061199]
[1745396057917,0.0034246,94249.0,94238.0,0.01061143]
[1745396058278,0.0034246,94249.0,94239.0,0.21222508]
[1745396058559,0.0034246,94249.0,94240.0,0.34]
[1745396058765,0.0034246,94249.0,94240.0,0.44830305]
[1745396059253,0.002,94241.0,94240.0,0.44830305]
[1745396059461,0.001,94241.0,94240.0,0.4628439]
[1745396059809,0.002,94241.0,94240.0,0.66690329]
[1745396060010,0.001,94241.0,94240.0,0.66690329]
[1745396060461,0.0034246,94249.0,94246.0,0.01061052]
[1745396060694,0.0034246,94249.0,94248.0,0.34]
[1745396060897,0.0034246,94249.0,94248.0,0.4628439]
[1745396061098,0.0034246,94249.0,94248.0,0.4996606]
[1745396061277,1e-08,94264.0,94261.0,0.01060884]
[1745396061476,0.001,94334.0,94261.0,0.01060884]
[1745396061477,0.22626248,94348.0,94283.0,0.56666816]
[1745396061678,0.01060186,94323.0,94283.0,0.56666816]
[1745396061892,0.01260344,94309.0,94283.0,0.69724706]
[1745396062095,0.01260344,94309.0,94271.0,0.34]
[1745396062096,0.1040252,94287.0,94271.0,0.34]
[1745396062323,0.1040252,94287.0,94283.0,0.55212731]
[1745396062324,0.0004252,94287.0,94283.0,0.55212731]
[1745396062875,0.0004252,94287.0,94283.0,0.34]
[1745396063286,0.0004252,94287.0,94283.0,0.4643092]
[1745396063516,0.0004252,94287.0,94283.0,0.44976835]
[1745396063725,0.0004252,94287.0,94283.0,0.3414653]
[1745396063897,0.0004252,94287.0,94283.0,0.3404653]
[1745396064110,0.0004252,94287.0,94283.0,0.44876835]
[1745396064318,0.0004252,94287.0,94283.0,0.45176835]
[1745396064519,0.0004252,94287.0,94283.0,0.45276835]
[1745396064718,0.0004252,94287.0,94283.0,0.44976835]
[1745396064896,0.0004252,94287.0,94283.0,0.3414653]
[1745396065102,0.0004252,94287.0,94283.0,0.3434653]
[1745396065714,0.0004252,94287.0,94283.0,0.3404653]
[1745396065963,0.0004252,94287.0,94283.0,0.3424653]
[1745396066177,0.0004252,94287.0,94283.0,0.45176835]
[1745396066388,0.0004252,94287.0,94283.0,0.3424653]
[1745396066757,0.21254956,94284.0,94283.0,0.0024653]
[1745396066957,0.32185261,94284.0,94283.0,0.0024653]
[1745396067158,0.36775261,94284.0,94283.0,0.0024653]
[1745396067383,0.0106094,94256.0,94237.0,0.01061154]
[1745396067612,0.10356,94255.0,94242.0,0.01061098]
[1745396067823,0.10356,94255.0,94241.0,0.01061109]
[1745396068037,0.2228087,94252.0,94239.0,0.00046534]
[1745396068240,0.01060962,94254.0,94239.0,0.00046534]
[1745396068440,0.01060962,94254.0,94240.0,0.0106112]
[1745396068685,0.01061019,94249.0,94239.0,0.00046534]
[1745396068889,0.01061075,94244.0,94241.0,0.001]
[1745396069065,0.01061052,94246.0,94241.0,0.001]
[1745396069222,0.05631007,94250.0,94241.0,0.001]
[1745396069418,0.01061019,94249.0,94239.0,0.00046534]
[1745396069621,0.01061064,94245.0,94239.0,0.00046534]